bitfinex-derivatives/quotes_ETHF0:USTF0_20251103
["timestamp","ask_amount","ask_price","bid_price","bid_amount"]
[1762193056511,0.4293,3670.0,3669.5,0.00233112]
[1762193056908,0.49061,3669.7,3669.5,0.00233112]
[1762193057404,0.7121,3669.6,3669.5,0.00233112]
[1762193058111,3.69841,3669.7,3669.5,0.00233112]
[1762193058809,0.49061,3669.7,3669.5,0.00233112]
[1762193059006,0.7121,3669.6,3669.5,0.00233112]
[1762193061920,1.20272,3669.6,3669.5,0.00233112]
[1762193066621,1.6551,3669.0,3668.9,3.42423417]
[1762193066921,0.7121,3668.5,3668.4,3.2078]
[1762193067121,1.65516,3668.5,3668.4,3.2078]
[1762193067621,1.65516,3668.5,3668.4,3.20998264]
[1762193067814,1.65516,3668.5,3668.4,3.70076264]
[1762193068418,1.65516,3668.5,3668.4,0.00218264]
[1762193069426,3.824,3669.2,3668.7,0.7023]
[1762193069617,7.428,3669.1,3668.8,0.49072]
[1762193069818,7.428,3669.1,3668.9,0.49071]
[1762193070121,0.7102,3669.0,3668.9,0.49071]
[1762193071119,1.4512,3669.0,3668.6,0.49075]
[1762193071329,0.49073,3668.8,3668.4,3.70074264]
[1762193071515,0.49073,3668.8,3668.5,0.49075]
[1762193071817,0.2503,3669.0,3668.5,0.49075]
[1762193071818,0.9605,3669.0,3668.9,0.49071]
[1762193072020,1.20091,3668.9,3668.8,0.49072]
[1762193072822,0.7102,3668.9,3668.8,0.49072]
[1762193073320,1.20091,3668.9,3668.7,0.49073]
[1762193073520,0.7102,3668.8,3668.7,0.49073]
[1762193073716,1.20094,3668.7,3668.4,3.20998264]
[1762193073923,0.7102,3668.5,3668.4,3.70076264]
[1762193074225,0.49075,3668.6,3668.4,3.20998264]
[1762193074721,1.47706,3669.0,3668.4,0.00218264]
[1762193074722,1.61896,3668.5,3668.4,0.00218264]
[1762193075022,1.61896,3668.5,3668.4,0.49296264]
[1762193075221,0.7102,3668.5,3668.4,0.49296264]
[1762193076326,1.20096,3668.5,3668.4,0.49296264]
[1762193076626,0.7102,3668.5,3668.4,0.49296264]
[1762193077418,8.65076,3668.5,3668.4,0.00218264]
[1762193077617,1.2011,3667.5,3667.4,3.2078]
[1762193077823,0.7102,3667.5,3667.4,3.2078]
[1762193078321,1.2011,3667.5,3667.4,3.2078]
[1762193078723,1.6212143,3667.5,3667.4,0.00334078]
[1762193079814,1.90552267,3667.5,3667.4,0.00334078]
[1762193080223,11.76552267,3667.5,3667.4,0.00334078]
[1762193081126,0.7102,3666.7,3666.5,4.14173]
[1762193081427,1.20122,3666.6,3666.5,3.2078]
[1762193082022,1.20122,3666.6,3666.5,3.2113102]
[1762193082217,11.06122,3666.6,3666.5,3.2113102]
[1762193082823,11.06122,3666.6,3666.5,0.0035102]
[1762193083025,1.20127,3666.2,3666.1,3.2078]
[1762193083730,0.7102,3666.2,3666.1,3.2078]
[1762193084034,0.7102,3666.2,3666.1,3.21001312]
[1762193084329,10.5702,3666.2,3666.1,3.21001312]
[1762193085126,0.7102,3666.2,3666.1,3.70109312]
[1762193085331,7.2512,3666.2,3666.1,3.70109312]
[1762193085925,7.74227,3666.2,3666.1,3.21001312]
[1762193086324,7.2512,3666.2,3666.1,3.21001312]
[1762193086728,7.74227,3666.2,3666.1,3.21001312]
[1762193087131,7.2512,3666.2,3666.1,3.21001312]
[1762193087330,7.74227,3666.2,3666.1,3.21001312]
[1762193089621,1.20127,3666.2,3666.1,3.21001312]
[1762193089826,11.06027,3666.2,3666.1,3.21001312]
[1762193090232,11.34462695,3666.2,3666.1,0.00221312]
[1762193092936,11.34462695,3666.2,3666.1,1.18269312]
[1762193092937,0.28435695,3666.2,3666.1,1.18269312]
[1762193093236,10.14235695,3666.2,3666.1,1.18269312]
[1762193093432,10.80615695,3666.2,3666.1,1.18269312]
[1762193093627,10.80615695,3666.2,3666.1,0.49329312]
[1762193093839,11.29722695,3666.2,3666.1,0.00221312]
[1762193096332,11.29722695,3666.2,3666.1,0.49329312]
[1762193096935,11.29722695,3666.2,3666.1,0.00221312]
[1762193097534,1.43922695,3666.2,3666.1,0.00221312]
[1762193097734,11.29622695,3666.2,3666.1,0.00221312]
[1762193100137,0.94815695,3666.2,3666.1,0.00221312]
[1762193100438,0.28435695,3666.2,3666.1,4.39049312]
[1762193100842,8.695,3666.5,3666.4,1.18044]
[1762193101032,8.97978185,3666.5,3666.4,1.18044]
[1762193101232,0.28478185,3666.5,3666.4,1.18044]
[1762193101440,9.855,3666.9,3666.8,0.49098]
[1762193101636,0.6638,3667.0,3666.9,0.49098]
[1762193101841,0.9486702,3667.0,3666.9,0.49098]
[1762193103242,0.9486702,3667.0,3666.9,4.38818]
[1762193103243,0.2848702,3667.0,3666.9,4.38818]
[1762193104136,0.6638,3666.6,3666.1,4.16673301]
[1762193104333,1.15487,3666.2,3666.1,0.00221312]
[1762193104536,4.6475402,3666.2,3666.1,0.00221312]
[1762193104743,4.6475402,3666.2,3665.3,4.38391988]
[1762193104744,0.6638,3665.4,3665.3,3.69899]
[1762193104940,0.9486702,3665.4,3665.3,3.69899]
[1762193105736,0.9486702,3665.4,3665.3,4.39121032]
[1762193105737,0.2848702,3665.4,3665.3,4.39121032]
[1762193106548,1.4398502,3665.4,3665.3,0.00282032]
[1762193107648,10.1358702,3665.4,3665.3,0.00282032]
[1762193107846,0.2848702,3665.4,3665.3,0.00282032]
[1762193108050,10.1358702,3665.4,3665.3,0.00282032]
[1762193108342,0.2848702,3665.4,3665.3,0.69222032]
[1762193108846,0.2848702,3665.4,3665.3,3.90002032]
[1762193112653,4.1564702,3665.4,3665.3,0.00282032]
[1762193113248,0.94720884,3665.4,3665.3,0.00282032]
[1762193113548,4.64618884,3665.4,3665.3,0.00282032]
[1762193113747,11.28738884,3665.4,3665.3,0.00282032]
[1762193113948,0.28340884,3665.4,3665.3,1.18341032]
[1762193114548,1.43838884,3665.4,3665.3,0.00282032]
[1762193116051,1.08166,3664.8,3664.7,0.02728774]
[1762193116253,14.42186884,3664.8,3664.7,0.02728774]
[1762193117150,14.42535489,3664.8,3664.7,0.02986545]
[1762193118357,0.28689489,3664.8,3664.7,0.62876545]
[1762193118556,0.87729489,3664.8,3664.7,0.02986545]
[1762193119052,0.87683295,3664.8,3664.7,0.02986545]
[1762193120758,9.85048605,3664.8,3664.7,1.12003545]
[1762193121158,9.85048605,3664.8,3664.7,0.62876545]
[1762193121456,9.84948605,3664.8,3664.7,0.62876545]
[1762193121661,9.84948605,3664.8,3664.7,0.52113545]
[1762193121862,10.43988605,3664.8,3664.7,0.02986545]
[1762193122067,10.43988605,3664.8,3664.7,0.52113545]
[1762193122253,10.43988605,3664.8,3664.7,0.02986545]
[1762193122658,10.43988605,3664.8,3664.7,0.52113545]
[1762193122864,0.59388605,3664.8,3664.7,0.52113545]
[1762193123062,10.43988605,3664.8,3664.7,0.52113545]
[1762193123258,0.59388605,3664.8,3664.7,0.52113545]
[1762193123462,0.00348605,3664.8,3664.7,1.12003545]
[1762193127066,0.00348605,3664.8,3664.7,2.07675534]
[1762193127268,0.0748,3665.5,3664.7,0.02986545]
[1762193127462,0.4912,3665.3,3665.0,0.3381]
[1762193127658,3.2826,3665.5,3665.2,0.4912]
[1762193127867,0.49117,3665.5,3665.3,0.49119]
[1762193128270,0.00226678,3665.5,3665.2,3.2078]
[1762193128569,0.49342678,3665.5,3665.3,0.49119]
[1762193128970,0.00226678,3665.5,3665.4,0.49118]
[1762193129168,0.00226678,3665.5,3665.3,0.49119]
[1762193129368,0.00226678,3665.5,3665.3,0.5742]
[1762193129569,0.00226678,3665.5,3665.4,0.5742]
[1762193129762,0.00226678,3665.5,3665.4,1.06538]
[1762193130665,0.00226678,3665.5,3665.4,0.5742]
[1762193130862,0.49342678,3665.5,3665.4,0.5742]
[1762193131066,0.5592,3665.3,3665.2,3.2078]
[1762193131264,1.05039,3665.3,3665.2,3.2078]
[1762193131873,0.49123,3665.0,3664.9,0.49124]
[1762193132266,0.49125,3664.9,3664.8,1.49571989]
[1762193132671,1.08536,3664.8,3664.7,0.02986545]
[1762193132973,0.5941,3664.8,3664.7,0.02986545]
[1762193133164,1.08536,3664.8,3664.7,0.02986545]
[1762193133666,0.49123,3665.0,3664.7,0.56886545]
[1762193133867,10.0,3665.0,3664.9,0.539]
[1762193134266,10.87780529,3665.0,3664.8,0.95671989]
[1762193134565,10.9277,3665.0,3664.9,0.49125]
[1762193134765,11.21141104,3665.0,3664.9,0.49125]
[1762193134965,10.28371104,3665.0,3664.9,1.03025]
[1762193135167,19.84,3665.0,3664.9,1.98696989]
[1762193135366,10.0,3665.0,3664.9,1.98696989]
[1762193135863,10.0,3665.0,3664.9,1.03025]
[1762193136870,10.0,3665.0,3664.9,4.23805]
[1762193136871,6.41915841,3665.0,3664.9,4.23805]
[1762193137965,7.34685841,3665.0,3664.9,3.2078]
[1762193138171,7.34685841,3665.0,3664.7,0.52113545]
[1762193138172,0.5941,3664.8,3664.7,0.52113545]
[1762193138576,0.5941,3664.8,3664.7,0.02986545]
[1762193138879,0.5941,3664.8,3664.7,0.52113545]
[1762193140479,6.75275841,3665.0,3664.9,0.74234]
[1762193140667,5.17923841,3665.0,3664.9,3.95014]
[1762193140979,4.61724841,3665.0,3664.9,3.95014]
[1762193141177,3.02281841,3665.0,3664.9,3.95014]
[1762193141369,1.16952841,3665.0,3664.9,3.95014]
[1762193141572,1.16952841,3665.0,3664.9,10.77174]
[1762193141765,1.16952841,3665.0,3664.9,13.11060915]
[1762193141970,0.33586678,3665.5,3665.4,0.74228]
[1762193142177,0.33586678,3665.5,3665.4,3.95008]
[1762193142370,0.9277,3666.0,3665.9,0.49111]
[1762193142573,0.9277,3666.0,3665.9,3.69891]
[1762193142775,0.4149,3666.5,3666.4,0.49104]
[1762193142976,0.3336,3667.0,3666.8,0.49099]
[1762193143276,0.33659707,3667.0,3666.8,0.49099]
[1762193143476,0.00299707,3667.0,3666.9,0.539]
[1762193144173,0.33659707,3667.0,3666.9,0.539]
[1762193147978,0.7214,3666.8,3666.7,3.6988]
[1762193148282,1.1507,3666.0,3665.9,3.69891]
[1762193149678,1.1507,3666.0,3665.9,3.2078]
[1762193149978,1.1507,3666.0,3665.9,3.42341934]
[1762193150181,1.1507,3666.0,3665.9,3.2078]
[1762193150683,1.1507,3666.0,3665.9,3.69891]
[1762193151883,0.7214,3666.2,3666.1,0.49108]
[1762193157183,1.21247,3666.2,3666.1,0.49108]
[1762193157382,0.7214,3666.2,3666.1,0.49108]
[1762193157787,1.21247,3666.2,3666.1,0.49108]
[1762193157990,0.7214,3666.1,3666.0,0.49109]
[1762193158383,0.7214,3665.6,3665.5,3.2078]
[1762193158590,0.7214,3665.6,3665.5,3.69896]
[1762193159088,1.21255,3665.6,3665.5,3.2078]
[1762193159284,0.7214,3665.3,3665.2,0.49119]
[1762193159690,1.21259,3665.3,3665.0,4.88511716]
[1762193159884,0.7214,3665.1,3665.0,3.2078]
[1762193160186,0.7214,3665.1,3665.0,3.69903]
[1762193160388,0.7214,3665.1,3665.0,3.91818784]
[1762193160579,0.7214,3665.1,3665.0,3.69903]
[1762193160980,0.4293,3665.5,3665.4,1.19818]
[1762193161177,0.4293,3665.5,3665.4,4.40598]
[1762193161580,3.2078,3666.4,3665.9,0.49111]
[1762193161581,1.1507,3666.0,3665.9,0.49111]
[1762193161778,0.92041,3666.0,3665.5,0.49116]
[1762193161983,1.1507,3665.5,3665.4,3.2078]
[1762193162783,0.7214,3665.1,3665.0,3.2078]
[1762193163182,1.21262,3665.1,3665.0,3.69903]
[1762193163380,0.7214,3665.1,3665.0,3.69903]
[1762193163694,1.1507,3666.0,3665.9,0.49111]
[1762193164086,0.33659707,3667.0,3666.4,0.49104]
[1762193164288,0.33659707,3667.0,3666.4,3.69884]
[1762193164492,0.7214,3666.9,3666.4,3.2078]
[1762193164791,1.1507,3666.5,3666.4,3.69884]
[1762193165093,1.05799707,3667.0,3666.9,0.49098]
[1762193165494,0.33659707,3667.0,3666.9,0.49098]
[1762193165685,1.15369707,3667.0,3666.8,3.2078]
[1762193165997,0.7214,3666.8,3666.7,3.2078]
[1762193166292,0.00299707,3667.0,3666.9,1.19798]
[1762193167092,3.6371,3668.0,3667.4,0.707]
[1762193167288,0.4293,3667.5,3667.4,0.49091]
[1762193168290,0.43152185,3667.5,3667.4,0.4939348]
[1762193168794,0.43152185,3667.5,3667.4,0.0030248]
[1762193168984,1.15292185,3667.5,3667.4,0.0030248]
[1762193169691,0.43152185,3667.5,3667.4,0.0030248]
[1762193170186,0.43152185,3667.5,3667.4,0.7100248]
[1762193170397,0.00222185,3667.5,3667.4,0.7100248]
[1762193171093,0.43152185,3667.5,3667.4,0.0030248]
[1762193171293,1.15292185,3667.5,3667.4,0.0030248]
[1762193171503,0.43152185,3667.5,3667.4,0.7100248]
[1762193171992,0.43152185,3667.5,3667.4,1.2009348]
[1762193172187,0.43152185,3667.5,3667.4,0.4939348]
[1762193173995,1.64382185,3667.5,3667.4,0.0030248]
[1762193174895,1.64382185,3667.5,3667.4,2.48e-05]
[1762193176794,0.49107,3666.3,3666.0,0.88069]
[1762193176993,0.6323,3666.1,3665.8,1.45095425]
[1762193177199,0.6323,3665.9,3665.6,4.65875425]
[1762193177402,1.12342,3665.9,3665.7,0.49114]
[1762193177700,1.12342,3665.9,3665.7,0.49385314]
[1762193178094,3.34,3666.5,3665.7,0.00271314]
[1762193178302,6.959,3666.4,3666.0,0.88069]
[1762193178699,3.2078,3666.1,3665.7,0.00271314]
[1762193179001,0.49112,3665.9,3665.7,0.49384314]
[1762193179192,0.49112,3665.9,3665.8,0.49112]
[1762193179501,0.49112,3665.9,3665.7,0.00271314]
[1762193180001,0.4911,3666.0,3665.8,0.49112]
[1762193180395,0.4911,3666.0,3665.7,0.00271314]
[1762193180595,3.2078,3666.1,3665.7,0.49385314]
[1762193180596,0.49111,3665.9,3665.7,0.49385314]
[1762193180797,1.12342,3665.8,3665.7,0.00271314]
[1762193182499,6.82,3665.9,3664.9,1.45095425]
[1762193182705,3.2078,3665.2,3664.7,0.51854774]
[1762193183002,3.2078,3665.2,3664.8,0.49125]
[1762193183396,3.2078,3665.2,3664.9,0.49124]
[1762193183593,3.824,3665.9,3665.5,0.88076]
[1762193183594,3.2078,3665.6,3665.5,0.88076]
[1762193183899,3.2078,3665.6,3665.5,1.50356]
[1762193184204,3.8401,3665.6,3665.0,0.3896]
[1762193184900,3.8401,3665.6,3665.2,0.4912]
[1762193185299,5.334,3666.0,3665.7,0.49113]
[1762193185694,3.2078,3666.2,3665.7,0.49113]
[1762193185898,13.0228,3666.2,3665.7,0.49113]
[1762193187204,13.0228,3666.2,3665.8,0.49112]
[1762193188805,13.0228,3666.2,3665.5,0.3896]
[1762193189000,0.49109,3666.1,3665.9,0.49111]
[1762193189202,3.2078,3666.2,3666.1,0.6667]
[1762193189801,3.2078,3666.2,3666.0,0.8782]
[1762193190098,3.69887,3666.2,3666.0,0.3871]
[1762193190302,3.2078,3666.2,3666.0,0.87819]
[1762193191506,3.2078,3666.2,3666.1,0.6667]
[1762193192108,3.8433,3666.2,3666.0,0.3871]
[1762193192304,0.6355,3666.1,3666.0,0.3871]
[1762193192504,0.6355,3666.1,3666.0,0.8782]
[1762193193005,0.6355,3666.0,3665.9,0.49111]
[1762193194012,0.49111,3665.9,3665.7,0.49113]
[1762193194209,0.49111,3665.9,3665.8,0.49112]
[1762193194405,0.4911,3666.0,3665.8,0.49112]
[1762193194611,0.6355,3665.9,3665.8,0.49112]
[1762193194809,0.6355,3666.1,3666.0,0.49109]
[1762193195107,3.69887,3666.2,3666.1,0.6667]
[1762193195314,1.12658,3666.1,3666.0,0.3871]
[1762193196509,0.6355,3666.1,3666.0,0.8782]
[1762193196712,1.12658,3666.1,3666.0,0.8782]
[1762193196914,1.12658,3666.1,3666.0,0.3871]
[1762193197514,0.49111,3666.0,3665.8,0.49112]
[1762193198209,0.6355,3665.8,3665.6,3.2078]
[1762193198403,3.8433,3665.8,3665.5,1.84055425]
[1762193199410,3.8433,3665.8,3665.3,1.45095425]
[1762193199411,1.12668,3665.4,3665.3,1.45095425]
[1762193199612,0.6355,3665.0,3664.9,1.945064]
[1762193199804,1.12673,3665.0,3664.9,0.00285975]
[1762193200010,1.25893,3665.0,3664.9,0.00285975]
[1762193201414,4.46673,3665.0,3664.9,0.00285975]
[1762193202614,4.33453,3665.0,3664.9,0.00285975]
[1762193203213,3.8433,3665.0,3664.9,0.00285975]
[1762193203413,4.33453,3665.0,3664.9,0.00285975]
[1762193203614,4.46673,3665.0,3664.9,0.00285975]
[1762193205816,1.07456,3664.8,3664.7,0.02728774]
[1762193206115,1.07463,3664.3,3664.2,1.45095425]
[1762193206422,1.07463,3664.3,3663.5,2.32343895]
[1762193206423,1.07464,3664.2,3664.1,1.45095425]
[1762193206717,1.07469,3663.8,3663.7,1.45095425]
[1762193206914,4.28249,3663.8,3663.7,1.45095425]
[1762193207120,3.2078,3663.8,3663.7,1.11281]
[1762193207620,0.49416468,3664.2,3664.1,0.6214]
[1762193207920,0.49138,3663.9,3663.6,1.94237425]
[1762193208123,0.49139,3663.8,3663.6,0.49141]
[1762193209224,0.49141,3663.7,3663.6,0.49142]
[1762193209523,0.4914,3663.8,3663.6,0.49142]
[1762193209725,0.5833,3663.7,3663.6,0.49142]
[1762193210624,0.5833,3663.9,3663.8,0.49139]
[1762193210821,0.49135,3664.1,3664.0,0.3582]
[1762193211019,10.87965,3664.1,3664.0,0.3582]
[1762193211219,0.5833,3663.9,3663.8,0.49139]
[1762193211420,1.07469,3663.8,3663.7,0.4914]
[1762193211925,0.5833,3663.7,3663.6,0.49142]
[1762193212123,0.5833,3664.0,3663.9,0.49137]
[1762193212322,1.07467,3664.0,3663.9,0.49137]
[1762193212524,1.07467,3664.0,3663.8,0.49138]
[1762193213133,10.87967,3664.0,3663.8,0.49138]
[1762193213626,1.07468,3663.9,3663.8,0.49138]
[1762193214221,0.5833,3663.9,3663.8,0.49138]
[1762193214420,1.07468,3663.9,3663.8,0.49138]
[1762193214723,0.5833,3663.7,3663.5,3.59772511]
[1762193214925,0.49139,3663.8,3663.6,0.49141]
[1762193215320,1.07469,3663.8,3663.7,0.49141]
[1762193215521,0.5833,3663.6,3663.5,4.08915511]
[1762193215716,9.805,3664.0,3663.7,0.6214]
[1762193215924,0.49138,3663.9,3663.8,0.6214]
[1762193216118,0.5833,3663.6,3663.5,0.88135511]
[1762193216523,1.07472,3663.6,3663.5,0.38992511]
[1762193216719,0.5833,3663.6,3663.5,0.88135511]
[1762193217123,0.5833,3663.6,3663.5,1.50275511]
[1762193217323,1.07472,3663.6,3663.5,0.49425511]
[1762193217924,0.5833,3663.6,3663.5,0.85245511]
[1762193218131,1.07472,3663.6,3663.5,0.49425511]
[1762193218726,0.5833,3663.6,3663.5,0.49425511]
[1762193218927,0.5833,3663.6,3663.5,0.85245511]
[1762193219330,1.07469,3663.8,3663.7,0.49141]
[1762193219932,0.49141,3663.7,3663.5,0.36102511]
[1762193220321,10.3853,3663.8,3663.7,0.6214]
[1762193220528,1.07471,3663.7,3663.6,0.49142]
[1762193220826,0.5833,3663.7,3663.6,0.49142]
[1762193221227,1.07472,3663.6,3663.5,0.36102511]
[1762193221426,1.07472,3663.6,3663.5,0.00282511]
[1762193222232,0.5833,3663.6,3663.5,0.49425511]
[1762193223234,0.5833,3663.9,3663.8,0.49139]
[1762193223532,10.3843,3663.9,3663.8,0.49139]
[1762193224127,10.87568,3663.9,3663.8,0.49139]
[1762193224428,10.3843,3663.9,3663.8,0.49139]
[1762193224631,3.824,3664.1,3664.0,1.47097]
[1762193224827,0.00282468,3664.2,3664.1,1.11275]
[1762193225028,0.00282468,3664.2,3664.1,4.32055]
[1762193225532,0.58612468,3664.2,3664.1,0.49135]
[1762193225731,0.5833,3664.1,3664.0,0.3582]
[1762193225933,0.5833,3664.1,3664.0,0.84957]
[1762193226332,0.5833,3664.1,3664.0,1.47097]
[1762193226931,0.49417468,3664.2,3664.1,0.49135]
[1762193227232,1.07747468,3664.2,3664.1,0.49135]
[1762193227631,0.49135,3664.1,3664.0,0.3582]
[1762193227825,1.07465,3664.1,3664.0,0.3582]
[1762193228030,1.07465,3664.1,3664.0,0.84957]
[1762193228337,0.00282468,3664.2,3664.1,1.11275]
[1762193230238,0.00282468,3664.2,3664.1,2.56370425]
[1762193230434,0.00282468,3664.2,3664.1,1.11275]
[1762193232843,0.00282468,3664.2,3663.7,1.22851]
[1762193232844,3.2078,3663.8,3663.4,1.95427094]
[1762193233138,2.72782468,3664.2,3662.0,0.3582]
[1762193233139,3.2078,3662.8,3662.0,0.3582]
[1762193233435,10.68929687,3662.7,3661.5,0.3582]
[1762193233740,1.47072371,3662.2,3662.0,0.04220926]
[1762193233941,4.10209687,3662.1,3662.0,0.04573136]
[1762193234538,4.10209687,3662.1,3661.5,0.3582]
[1762193234840,3.2078,3661.6,3661.5,0.3582]
[1762193235136,4.10209687,3661.6,3661.0,0.3582]
[1762193235345,9.795,3662.0,3661.5,0.4994]
[1762193235536,3.21049057,3661.6,3661.0,0.36160703]
[1762193235838,3.2078,3661.1,3661.0,0.36160703]
[1762193236037,14.07180321,3661.1,3661.0,0.36160703]
[1762193237235,4.27680321,3661.1,3661.0,0.36160703]
[1762193237438,10.81580321,3661.1,3661.0,0.36160703]
[1762193238946,4.27680321,3661.1,3661.0,0.36160703]
[1762193239140,14.07380321,3661.1,3661.0,0.36160703]
[1762193242245,14.07480321,3661.1,3661.0,0.36160703]
[1762193242947,0.49182,3660.6,3660.5,0.3582]
[1762193243243,14.29082268,3660.6,3659.5,0.4994]
[1762193243450,3.2078,3659.6,3659.0,0.4994]
[1762193243749,3.2078,3659.1,3659.0,0.4994]
[1762193243945,3.2078,3659.1,3659.0,0.50285701]
[1762193243946,13.0058,3659.1,3659.0,0.50285701]
[1762193244142,14.06729433,3659.1,3659.0,0.50285701]
[1762193244346,4.26837803,3659.1,3659.0,0.50285701]
[1762193244541,14.06637803,3659.1,3659.0,0.50285701]
[1762193246145,4.26837803,3659.1,3659.0,8.02316087]
[1762193246347,4.26837803,3659.1,3659.0,0.4994]
[1762193246548,4.26837803,3659.1,3659.0,2.23800321]
[1762193247149,4.26837803,3659.1,3659.0,2.24081302]
[1762193247651,4.26837803,3659.1,3659.0,0.50220981]
[1762193248154,11.10037803,3659.1,3659.0,0.00020981]
[1762193248343,14.06837803,3659.1,3659.0,0.48010981]
[1762193248548,4.26837803,3659.1,3659.0,0.48010981]
[1762193248852,14.06837803,3659.1,3659.0,0.48010981]
[1762193250053,4.26837803,3659.1,3659.0,0.48010981]
[1762193250247,14.06937803,3659.1,3659.0,0.48010981]
[1762193250754,14.56139803,3659.1,3659.0,0.48010981]
[1762193252855,14.56139803,3659.1,3659.0,2.21871302]
[1762193253850,16.03212174,3659.1,3659.0,2.21871302]
[1762193254046,14.56139803,3659.1,3659.0,2.21871302]
[1762193254246,16.03212174,3659.1,3659.0,2.21871302]
[1762193254754,4.26837803,3659.1,3659.0,9.25851068]
[1762193254961,14.07037803,3659.1,3659.0,9.25851068]
[1762193255851,14.07037803,3659.1,3659.0,8.76647068]
[1762193256055,14.07037803,3659.1,3659.0,9.25851068]
[1762193256353,14.07037803,3659.1,3659.0,8.76647068]
[1762193256557,4.26837803,3659.1,3659.0,9.25851068]
[1762193256850,2.80267482,3659.1,3659.0,7.79280747]
[1762193257248,2.80267482,3659.1,3659.0,7.30076747]
[1762193257447,3.29469482,3659.1,3659.0,0.48010981]
[1762193258053,4.74267536,3659.1,3659.0,0.48010981]
[1762193258254,3.29469482,3659.1,3659.0,0.03578108]
[1762193258959,13.09569482,3659.1,3659.0,0.03578108]
[1762193259362,13.09569482,3659.1,3659.0,0.03909801]
[1762193260056,13.09569482,3659.1,3659.0,0.87749801]
[1762193260350,3.29469482,3659.1,3659.0,0.87749801]
[1762193260558,13.09569482,3659.1,3659.0,6.85975567]
[1762193261056,1.06057803,3659.1,3659.0,7.35179567]
[1762193261256,1.06057803,3659.1,3659.0,6.85975567]
[1762193261960,1.06057803,3659.1,3658.5,0.4994]
[1762193262164,3.2078,3658.6,3658.5,0.4994]
[1762193262464,14.06937803,3658.6,3658.5,0.4994]
[1762193262663,14.06937803,3658.6,3658.5,0.7723]
[1762193262966,14.07140383,3658.6,3658.5,0.50151985]
[1762193263358,14.56349383,3658.6,3658.5,7.32217751]
[1762193263852,14.56349383,3658.6,3658.5,0.77441985]
[1762193264056,14.56349383,3658.6,3658.5,6.48377751]
[1762193264454,14.56349383,3658.6,3658.5,0.77441985]
[1762193265257,16.9684018,3658.6,3658.5,0.50151985]
[1762193265562,0.49216,3658.1,3658.0,1.2916]
[1762193265763,6.71118712,3658.1,3658.0,1.2916]
[1762193266060,6.71118712,3658.1,3658.0,7.27385766]
[1762193266356,4.76053803,3658.1,3658.0,6.48165766]
[1762193266561,4.76053803,3658.1,3658.0,6.48463534]
[1762193266961,4.76053803,3658.1,3658.0,7.27683534]
[1762193267465,14.06837803,3658.1,3658.0,7.76900534]
[1762193267768,4.26837803,3658.1,3658.0,7.76900534]
[1762193269970,2.44331083,3659.1,3659.0,0.96724]
[1762193270158,0.49199,3659.4,3659.3,0.7922]
[1762193270360,0.49199,3659.4,3659.1,0.49202]
[1762193270561,1.9592189,3659.3,3659.1,0.49202]
[1762193270762,1.4672189,3659.4,3659.3,0.492]
[1762193270960,0.00192735,3659.4,3659.3,1.2842]
[1762193272171,0.00192735,3659.4,3659.3,0.7922]
[1762193272360,0.00192735,3659.4,3659.3,1.2842]
[1762193272966,0.00192735,3659.4,3659.3,0.7922]
[1762193273271,0.00192735,3659.4,3659.3,1.2842]
[1762193274471,1.4672189,3660.1,3660.0,1.2674]
[1762193274768,12.2518,3660.4,3660.3,0.7922]
[1762193275164,9.044,3660.4,3660.3,0.7922]
[1762193275358,0.0026833,3660.4,3660.3,0.7922]
[1762193275770,0.0026833,3660.4,3660.1,3.2078]
[1762193276070,0.0026833,3660.4,3660.0,0.4752]
[1762193276471,0.0026833,3660.4,3660.1,3.69969]
[1762193276665,0.0026833,3660.4,3660.3,1.28406]
[1762193278065,0.00698,3661.0,3660.9,1.28398]
[1762193278872,0.01025801,3661.0,3660.9,1.28610838]
[1762193279673,0.00327801,3661.0,3660.9,1.28610838]
[1762193280676,3.2078,3662.5,3662.0,0.4752]
[1762193280871,0.49161,3662.2,3662.0,0.4752]
[1762193281174,0.4916,3662.3,3662.2,0.7922]
[1762193281367,1.264,3662.3,3662.0,0.4752]
[1762193281564,1.26746204,3662.3,3662.0,0.4752]
[1762193281767,0.77586204,3662.3,3662.0,0.96683]
[1762193281968,0.27201531,3662.2,3662.1,4.0]
[1762193282170,0.00346204,3662.3,3662.1,4.0]
[1762193282378,0.49506204,3662.3,3662.1,4.0]
[1762193282579,0.49165,3662.0,3661.6,3.2078]
[1762193282877,0.49165,3662.0,3661.6,3.69948]
[1762193283069,0.49164,3662.0,3661.6,3.69948]
[1762193283268,0.49164,3662.0,3661.9,0.7922]
[1762193284277,0.00346204,3662.3,3661.9,0.7922]
[1762193284582,0.49162,3662.1,3661.9,0.7922]
[1762193285382,0.49161,3662.2,3661.9,0.7922]
[1762193285577,0.00346204,3662.3,3661.9,0.7922]
[1762193285773,0.49163,3662.1,3662.0,0.4752]
[1762193286282,0.49163,3662.1,3662.0,1.2674]
[1762193287380,0.49506204,3662.3,3662.0,1.2674]
[1762193287581,0.49161,3662.2,3662.0,1.2674]
[1762193287776,0.49162,3662.1,3662.0,1.2674]
[1762193288375,1.26413,3661.3,3661.2,3.2078]
[1762193288580,10.2568,3662.0,3661.2,4.0]
[1762193288779,3.2078,3662.1,3661.8,0.7922]
[1762193288980,0.49165,3661.9,3661.8,0.7922]
[1762193289482,0.49171,3661.5,3661.2,3.69954]
[1762193289675,0.4668,3662.0,3661.2,3.2078]
[1762193289883,0.49168,3661.7,3661.6,0.7922]
[1762193290086,1.26409,3661.6,3661.5,0.4752]
[1762193290382,0.49168,3661.7,3661.6,0.7922]
[1762193291580,0.49166,3661.8,3661.7,0.7922]
[1762193292374,0.00346204,3662.3,3662.2,0.7922]
[1762193292589,0.49162,3662.1,3662.0,0.4752]
[1762193292894,0.49161,3662.2,3662.0,0.4752]
[1762193293092,0.7724,3662.1,3661.7,3.2078]
[1762193293290,0.49166,3661.9,3661.7,3.2078]
[1762193293485,0.00346204,3662.3,3662.0,0.4752]
[1762193293692,0.00346204,3662.3,3662.2,1.28381]
[1762193293890,0.49505204,3662.3,3662.2,0.7922]
[1762193294194,1.26745204,3662.3,3662.2,0.7922]
[1762193294896,0.77586204,3662.3,3662.2,0.7922]